fUST/lending_fUST_20240901
["ID","MTS","AMOUNT","RATE_DAILY","PERIOD"]
[336770569,1725131236957,-151.0,0.00032876,7]
[336770570,1725131236980,-151.325762,0.00032876,7]
[336770571,1725131237005,-500.0,0.00032876,31]
[336770572,1725131237028,-632.914471,0.00032876,7]
[336770573,1725131237052,-1498.82,0.00032876,31]
[336770574,1725131237074,-151.0,0.00032876,7]
[336770575,1725131237096,-151.0,0.00032876,7]
[336770576,1725131237118,-632.914471,0.00032876,7]
[336770577,1725131237139,-632.914471,0.00032876,7]
[336770578,1725131237160,-632.914471,0.00032876,7]
[336770579,1725131237181,-500.0,0.00032876,31]
[336770580,1725131237202,-632.914471,0.00032876,7]
[336770581,1725131237225,-632.914471,0.00032876,7]
[336770582,1725131237245,-632.914471,0.00032876,7]
[336770583,1725131237266,-632.914471,0.00032876,7]
[336770584,1725131237287,-632.914471,0.00032876,7]
[336770585,1725131237312,-632.914471,0.00032876,7]
[336770586,1725131237336,-709.5,0.00032876,31]
[336770587,1725131237359,-500.0,0.00032876,31]
[336770588,1725131237380,-4143.49,0.00032876,31]
[336770589,1725131237403,-578.43,0.00032876,31]
[336770590,1725131237424,-500.0,0.00032876,31]
[336770591,1725131237448,-151.0,0.00032876,7]
[336770592,1725131237469,-196.359328,0.00032876,7]
[336770593,1725131237489,-509.6084453,0.00032876,31]
[336770594,1725131237509,-500.0,0.00032876,31]
[336770595,1725131237531,-500.0,0.00032876,31]
[336770596,1725131237553,-500.0,0.00032876,31]
[336770597,1725131237576,-500.0,0.00032876,31]
[336770598,1725131237598,-500.0,0.00032876,31]
[336770599,1725131237619,-500.0,0.00032876,31]
[336770600,1725131237640,-500.0,0.00032876,31]
[336770601,1725131237660,-566.32,0.00032876,31]
[336770602,1725131237794,-500.0,0.00032876,31]
[336770603,1725131237816,-381.5227093,0.00032876,31]
[336770604,1725131237839,-500.0,0.00032876,31]
[336770605,1725131237860,-500.0,0.00032876,31]
[336770606,1725131237882,-500.0,0.00032876,31]
[336770607,1725131237906,-500.0,0.00032876,31]
[336770608,1725131237926,-500.0,0.00032876,2]
[336770609,1725131237952,-500.0,0.00032876,31]
[336770610,1725131237973,-451.73366635,0.00032876,31]
[336770611,1725131237995,-500.0,0.00032876,31]
[336770612,1725131238018,-500.0,0.00032876,31]
[336770613,1725131238042,-626.41,0.00032876,31]
[336770614,1725131238065,-649.59,0.00032876,31]
[336770615,1725131238088,-500.0,0.00032876,31]
[336770616,1725131238110,-1037.78,0.00032876,31]
[336770617,1725131238137,-500.0,0.00032876,31]
[336770618,1725131238158,-530.21,0.00032876,31]
[336770619,1725131238179,-500.0,0.00032876,31]
[336770620,1725131238200,-500.0,0.00032876,31]
[336770621,1725131238221,-1555.78,0.00032876,31]
[336770622,1725131238242,-302.84474771,0.00032876,31]
[336770623,1725131238265,-500.0,0.00032876,31]
[336770624,1725131238287,-500.0,0.00032876,31]
[336770625,1725131238310,-467.27089702,0.00032876,31]
[336770626,1725131238331,-502.34445884,0.00032876,31]
[336770627,1725131238353,-500.0,0.00032876,31]
[336770628,1725131238374,-664.08,0.00032876,31]
[336770629,1725131238396,-500.0,0.00032876,31]
[336770630,1725131238417,-151.0,0.00032876,7]
[336770631,1725131238439,-502.10340332,0.00032876,31]
[336770632,1725131238461,-183.766337,0.00032876,7]
[336770633,1725131238483,-500.0,0.00032876,31]
[336770634,1725131238504,-500.0,0.00032876,31]
[336770635,1725131238526,-1044.7,0.00032876,31]
[336770636,1725131238547,-500.0,0.00032876,31]
[336770637,1725131238569,-1747.12,0.00032876,31]
[336770638,1725131238590,-500.0,0.00032876,31]
[336770639,1725131238618,-500.0,0.00032876,31]
[336770640,1725131238640,-879.0,0.00032876,31]
[336770641,1725131238661,-500.0,0.00032876,31]
[336770642,1725131238681,-500.0,0.00032876,31]
[336770643,1725131238706,-500.0,0.00032876,31]
[336770644,1725131238726,-500.0,0.00032876,31]
[336770645,1725131238748,-651.46,0.00032876,31]
[336770646,1725131238769,-500.0,0.00032876,31]
[336770647,1725131238792,-500.0,0.00032876,31]
[336770648,1725131238814,-500.0,0.00032876,31]
[336770649,1725131238839,-500.0,0.00032876,31]
[336770650,1725131238860,-500.0,0.00032876,31]
[336770651,1725131238883,-500.0,0.00032876,31]
[336770652,1725131238905,-500.0,0.00032876,31]
[336770653,1725131238927,-580.23,0.00032876,31]
[336770654,1725131238954,-151.0,0.00032876,7]
[336770655,1725131238975,-151.0,0.00032876,7]
[336770656,1725131239000,-151.0,0.00032876,7]
[336770657,1725131239023,-151.0,0.00032876,7]
[336770658,1725131239045,-151.0,0.00032876,7]
[336770659,1725131239066,-151.0,0.00032876,7]
[336770660,1725131239092,-500.0,0.00032876,31]
[336770661,1725131239117,-151.0,0.00032876,7]
[336770662,1725131239139,-151.0,0.00032876,7]
[336770663,1725131239162,-151.0,0.00032876,7]
[336770664,1725131239182,-151.0,0.00032876,7]
[336770665,1725131239203,-230.038972,0.00032876,7]
[336770666,1725131239225,-500.0,0.00032876,31]
[336770667,1725131239249,-500.0,0.00032876,31]
[336770668,1725131239270,-500.0,0.00032876,31]
[336770669,1725131239291,-813.59,0.00032876,30]
[336770670,1725131239312,-500.0,0.00032876,31]
[336770671,1725131239333,-891.07,0.00032876,31]
[336770672,1725131239355,-500.0,0.00032876,31]
[336770673,1725131239376,-151.0,0.00032876,7]
[336770674,1725131239398,-151.0,0.00032876,7]
[336770675,1725131239421,-151.0,0.00032876,7]
[336770676,1725131239443,-151.0,0.00032876,7]
[336770677,1725131239464,-227.990655,0.00032876,7]
[336770678,1725131239484,-664.24,0.00032876,31]
[336770679,1725131239505,-500.0,0.00032876,31]
[336770680,1725131239530,-500.0,0.00032876,31]
[336770681,1725131239551,-1374.38,0.00032876,31]
[336770682,1725131239572,-151.0,0.00032876,7]
[336770683,1725131239593,-151.0,0.00032876,7]
[336770684,1725131239709,-151.0,0.00032876,7]
[336770685,1725131239730,-151.0,0.00032876,7]
[336770686,1725131239752,-151.0,0.00032876,7]
[336770687,1725131239773,-500.0,0.00032876,31]
[336770688,1725131239795,-151.0,0.00032876,7]
[336770689,1725131239816,-151.0,0.00032876,7]
[336770690,1725131239839,-151.0,0.00032876,7]
[336770691,1725131239859,-297.512465,0.00032876,7]
[336770692,1725131239880,-430.54722159,0.00032876,31]
[336770693,1725131239902,-500.0,0.00032876,31]
[336770694,1725131239928,-640.65,0.00032876,31]
[336770695,1725131239952,-500.0,0.00032876,31]
[336770696,1725131239972,-500.0,0.00032876,31]
[336770697,1725131239992,-500.0,0.00032876,31]
[336770698,1725131240013,-943.22,0.00032876,31]
[336770699,1725131240035,-500.0,0.00032876,31]
[336770700,1725131240056,-500.0,0.00032876,31]
[336770701,1725131240077,-626.42829007,0.00032876,31]
[336770702,1725131240097,-500.0,0.00032876,31]
[336770703,1725131240118,-500.0,0.00032876,31]
[336770704,1725131240139,-691.75,0.00032876,31]
[336770705,1725131240160,-500.0,0.00032876,7]
[336770706,1725131240180,-1000.0,0.00032876,7]
[336770707,1725131240201,-500.0,0.00032876,31]
[336770708,1725131240221,-500.0,0.00032876,31]
[336770709,1725131240242,-151.0,0.00032876,7]
[336770710,1725131240263,-847.0,0.00032876,31]
[336770711,1725131240284,-500.0,0.00032876,31]
[336770712,1725131240305,-502.04550254,0.00032876,31]
[336770713,1725131240325,-500.0,0.00032876,31]
[336770714,1725131240347,-151.0,0.00032876,7]
[336770715,1725131240368,-500.0,0.00032876,31]
[336770716,1725131240389,-151.0,0.00032876,7]
[336770717,1725131240410,-151.0,0.00032876,7]
[336770718,1725131240432,-151.0,0.00032876,7]
[336770719,1725131240453,-151.0,0.00032876,7]
[336770720,1725131240474,-151.0,0.00032876,7]
[336770721,1725131240495,-501.56254941,0.00032876,31]
[336770722,1725131240516,-500.0,0.00032876,31]
[336770723,1725131240541,-500.0,0.00032876,31]
[336770724,1725131240561,-527.78,0.00032876,31]
[336770725,1725131240582,-500.0,0.00032876,31]
[336770726,1725131240604,-230.02264608,0.00032876,31]
[336770727,1725131240626,-334.39545367,0.00032876,31]
[336770728,1725131240650,-500.0,0.00032876,31]
[336770729,1725131240670,-500.0,0.00032876,31]
[336770730,1725131240690,-884.53,0.00032876,31]
[336770731,1725131240711,-500.0,0.00032876,31]
[336770732,1725131240732,-577.17,0.00032876,31]
[336770733,1725131240753,-831.07,0.00032876,31]
[336770734,1725131240774,-500.0,0.00032876,31]
[336770735,1725131240794,-500.0,0.00032876,31]
[336770736,1725131240816,-151.0,0.00032876,7]
[336770737,1725131240838,-151.0,0.00032876,7]
[336770738,1725131240860,-151.0,0.00032876,7]
[336770739,1725131240882,-976.97,0.00032876,31]
[336770740,1725131240905,-500.0,0.00032876,31]
[336770741,1725131240928,-151.0,0.00032876,7]
[336770742,1725131240955,-1053.56,0.00032876,31]
[336770743,1725131240979,-151.0,0.00032876,7]
[336770744,1725131241000,-927.6,0.00032876,31]
[336770745,1725131241024,-151.0,0.00032876,7]
[336770746,1725131241055,-189.04293,0.00032876,7]
[336770747,1725131241077,-500.0,0.00032876,31]
[336770748,1725131241098,-151.0,0.00032876,7]
[336770749,1725131241121,-151.0,0.00032876,7]
[336770750,1725131241142,-3113.9,0.00032876,31]
[336770751,1725131241163,-801.14,0.00032876,31]
[336770752,1725131241184,-151.0,0.00032876,7]
[336770753,1725131241206,-206.64923251,0.00032876,31]
[336770754,1725131241227,-500.0,0.00032876,31]
[336770755,1725131241248,-151.0,0.00032876,7]
[336770756,1725131241269,-151.0,0.00032876,7]
[336770757,1725131241293,-346.98864301,0.00032876,31]
[336770758,1725131241316,-151.0,0.00032876,7]
[336770759,1725131241338,-500.0,0.00032876,31]
[336770760,1725131241359,-500.0,0.00032876,31]
[336770761,1725131241379,-151.0,0.00032876,7]
[336770762,1725131241507,-3499.05,0.00032876,31]
[336770763,1725131241531,-151.0,0.00032876,7]
[336770764,1725131241552,-500.0,0.00032876,31]
[336770765,1725131241575,-240.768013,0.00032876,7]
[336770766,1725131241596,-500.0,0.00032876,31]
[336770767,1725131241618,-723.82,0.00032876,31]
[336770768,1725131241640,-500.0,0.00032876,31]
[336770769,1725131241661,-500.0,0.00032876,31]
[336770770,1725131241684,-949.09,0.00032876,31]
[336770771,1725131241705,-364.16002508,0.00032876,31]
[336770772,1725131241726,-500.0,0.00032876,31]
[336770773,1725131241748,-3826.94,0.00032876,31]
[336770774,1725131241771,-965.32,0.00032876,31]
[336770775,1725131241795,-500.0,0.00032876,31]
[336770776,1725131241820,-500.0,0.00032876,31]
[336770777,1725131241842,-500.0,0.00032876,31]
[336770778,1725131241865,-500.0,0.00032876,31]
[336770779,1725131241888,-500.0,0.00032876,31]
[336770780,1725131241911,-3235.26,0.00032876,31]
[336770781,1725131241934,-500.0,0.00032876,31]
[336770782,1725131241961,-516.74050358,0.00032876,31]
[336770783,1725131241984,-500.0,0.00032876,31]
[336770784,1725131242008,-620.08,0.00032876,31]
[336770785,1725131242036,-500.0,0.00032876,31]
[336770786,1725131242063,-1877.45,0.00032876,31]
[336770787,1725131242084,-500.0,0.00032876,31]
[336770788,1725131242106,-500.0,0.00032876,31]
[336770789,1725131242128,-500.0,0.00032876,31]
[336770790,1725131242149,-759.35,0.00032876,31]
[336770791,1725131242171,-500.0,0.00032876,31]
[336770792,1725131242192,-500.0,0.00032876,31]
[336770793,1725131242212,-500.0,0.00032876,31]
[336770794,1725131242233,-500.0,0.00032876,31]
[336770795,1725131242253,-500.0,0.00032876,31]
[336770796,1725131242273,-500.0,0.00032876,31]
[336770797,1725131242293,-500.0,0.00032876,31]
[336770798,1725131242314,-500.0,0.00032876,31]
[336770799,1725131242336,-814.59,0.00032876,31]
[336770800,1725131242359,-966.52,0.00032876,31]
[336770801,1725131242381,-882.94,0.00032876,31]
[336770802,1725131242403,-500.0,0.00032876,31]
[336770803,1725131242429,-500.0,0.00032876,31]
[336770804,1725131242451,-500.0,0.00032876,31]
[336770805,1725131242473,-527.64269415,0.00032876,31]
[336770806,1725131242494,-500.0,0.00032876,31]
[336770807,1725131242517,-2898.53,0.00032876,31]
[336770808,1725131242540,-5584.22,0.00032876,31]
[336770809,1725131242564,-502.54978621,0.00032876,31]
[336770810,1725131242585,-500.0,0.00032876,31]
[336770811,1725131242606,-500.0,0.00032876,31]
[336770812,1725131242626,-2300.53,0.00032876,31]
[336770813,1725131242647,-500.0,0.00032876,31]
[336770814,1725131242667,-500.0,0.00032876,31]
[336770815,1725131242689,-1105.94,0.00032876,31]
[336770816,1725131242710,-355.84334161,0.00032876,31]
[336770817,1725131242732,-500.0,0.00032876,31]
[336770818,1725131242753,-734.21,0.00032876,31]
[336770819,1725131242775,-500.0,0.00032876,31]
[336770820,1725131242797,-4330.93,0.00032876,31]
[336770821,1725131242817,-549.28,0.00032876,31]
[336770822,1725131242839,-502.2,0.00032876,31]
[336770823,1725131242860,-500.0,0.00032876,31]
[336770824,1725131242880,-500.0,0.00032876,31]
[336770825,1725131242903,-500.0,0.00032876,31]
[336770826,1725131242923,-1634.13,0.00032876,31]
[336770827,1725131242946,-500.0,0.00032876,31]
[336770828,1725131242968,-500.0,0.00032876,31]
[336770829,1725131242989,-500.0,0.00032876,31]
[336770830,1725131243011,-500.0,0.00032876,31]
[336770831,1725131243033,-500.0,0.00032876,31]
[336770832,1725131243055,-500.0,0.00032876,31]
[336770833,1725131243077,-539.9,0.00032876,31]
[336770834,1725131243098,-974.62,0.00032876,31]
[336770835,1725131243120,-510.71,0.00032876,31]
[336770836,1725131243142,-500.0,0.00032876,31]
[336770837,1725131243263,-500.0,0.00032876,31]
[336770838,1725131243286,-640.42,0.00032876,31]
[336770839,1725131243308,-500.0,0.00032876,31]
[336770840,1725131243329,-927.24,0.00032876,31]
[336770841,1725131243349,-500.0,0.00032876,31]
[336770842,1725131243370,-1070.87,0.00032876,31]
[336770843,1725131243392,-5406.05,0.00032876,31]
[336770844,1725131243414,-500.0,0.00032876,31]
[336770845,1725131243434,-526.72,0.00032876,31]
[336770846,1725131243455,-500.0,0.00032876,31]
[336770847,1725131243476,-500.0,0.00032876,31]
[336770848,1725131243498,-151.0,0.00032876,7]
[336770849,1725131243518,-151.0,0.00032876,7]
[336770850,1725131243540,-747.62,0.00032876,31]
[336770851,1725131243561,-1604.45,0.00032876,31]
[336770852,1725131243582,-859.61,0.00032876,31]
[336770853,1725131243603,-500.0,0.00032876,31]
[336770854,1725131243624,-802.64,0.00032876,31]
[336770855,1725131243645,-811.68,0.00032876,14]
[336770856,1725131243668,-31471.23,0.00032876,8]
[336770857,1725131243688,-500.0,0.00032876,31]
[336770858,1725131243709,-500.0,0.00032876,31]
[336770859,1725131243732,-500.0,0.00032876,31]
[336770860,1725131243753,-500.0,0.00032876,31]
[336770861,1725131243774,-940.09,0.00032876,31]
[336770862,1725131243795,-500.0,0.00032876,31]
[336770863,1725131243816,-500.0,0.00032876,31]
[336770864,1725131243841,-501.93966529,0.00032876,31]
[336770865,1725131243863,-1838.14,0.00032876,21]
[336770866,1725131243885,-151.0,0.00032876,7]
[336770867,1725131243906,-151.0,0.00032876,7]
[336770868,1725131243928,-151.0,0.00032876,7]
[336770869,1725131243957,-151.0,0.00032876,7]
[336770870,1725131243978,-151.0,0.00032876,7]
[336770871,1725131243999,-1076.31,0.00032876,31]
[336770872,1725131244024,-545.61,0.00032876,31]
[336770873,1725131244048,-2045.38,0.00032876,31]
[336770874,1725131244069,-239.24339,0.00032876,7]
[336770875,1725131244091,-239.24339,0.00032876,7]
[336770876,1725131244113,-500.0,0.00032876,31]
[336770877,1725131244134,-239.24339,0.00032876,7]
[336770878,1725131244154,-239.24339,0.00032876,7]
[336770879,1725131244175,-239.24339,0.00032876,7]
[336770880,1725131244197,-239.24339,0.00032876,7]
[336770881,1725131244217,-200.0,0.00032876,7]
[336770882,1725131244239,-965.98,0.00032876,31]
[336770883,1725131244260,-500.0,0.00032876,31]
[336770884,1725131244282,-239.24339,0.00032876,7]
[336770885,1725131244303,-239.24339,0.00032876,7]
[336770886,1725131244325,-239.24339,0.00032876,7]
[336770887,1725131244347,-760.6,0.00032876,7]
[336770888,1725131244368,-239.24339,0.00032876,7]
[336770889,1725131244389,-601.98,0.00032876,31]
[336770890,1725131244412,-239.24339,0.00032876,7]
[336770891,1725131244433,-239.24339,0.00032876,7]
[336770892,1725131244456,-500.0,0.00032876,31]
[336770893,1725131244477,-1376.94,0.00032876,31]
[336770894,1725131244498,-1209.62,0.00032876,31]
[336770895,1725131244521,-5886.87,0.00032876,31]
[336770896,1725131244542,-500.0,0.00032876,31]
[336770897,1725131244564,-500.0,0.00032876,31]
[336770898,1725131244585,-505.58010524,0.00032876,31]
[336770899,1725131244607,-1260.89,0.00032876,7]
[336770900,1725131244627,-500.0,0.00032876,31]
[336770901,1725131244649,-2199.5,0.00032876,31]
[336770902,1725131244672,-500.0,0.00032876,31]
[336770903,1725131244693,-937.75,0.00032876,31]
[336770904,1725131244714,-151.0,0.00032876,7]
[336770905,1725131244735,-500.0,0.00032876,31]
[336770906,1725131244756,-500.0,0.00032876,31]
[336770907,1725131244779,-5077.7,0.00032876,31]
[336770908,1725131244804,-959.96,0.00032876,31]
[336770909,1725131244926,-151.0,0.00032876,7]
[336770910,1725131244955,-500.0,0.00032876,30]
[336770911,1725131244977,-866.43,0.00032876,31]
[336770912,1725131244999,-500.0,0.00032876,31]
[336770913,1725131245021,-151.0,0.00032876,7]
[336770914,1725131245044,-1179.68,0.00032876,31]
[336770915,1725131245066,-500.0,0.00032876,31]
[336770916,1725131245087,-502.5149893,0.00032876,31]
[336770917,1725131245109,-500.0,0.00032876,31]
[336770918,1725131245131,-500.0,0.00032876,31]
[336770919,1725131245151,-500.0,0.00032876,31]
[336770920,1725131245172,-927.57,0.00032876,31]
[336770921,1725131245193,-151.0,0.00032876,7]
[336770922,1725131245216,-151.0,0.00032876,7]
[336770923,1725131245237,-151.0,0.00032876,7]
[336770924,1725131245258,-151.0,0.00032876,7]
[336770925,1725131245280,-151.0,0.00032876,7]
[336770926,1725131245301,-151.096476,0.00032876,7]
[336770927,1725131245322,-500.0,0.00032876,31]
[336770928,1725131245344,-527.16,0.00032876,31]
[336770929,1725131245367,-811.09,0.00032876,31]
[336770930,1725131245390,-415.81711232,0.00032876,31]
[336770931,1725131245413,-601.93,0.00032876,31]
[336770932,1725131245435,-926.56,0.00032876,31]
[336770933,1725131245457,-151.0,0.00032876,7]
[336770934,1725131245478,-151.0,0.00032876,7]
[336770935,1725131245499,-500.0,0.00032876,31]
[336770936,1725131245521,-151.0,0.00032876,7]
[336770937,1725131245543,-151.0,0.00032876,7]
[336770938,1725131245564,-151.0,0.00032876,7]
[336770939,1725131245586,-851.27,0.00032876,31]
[336770940,1725131245609,-151.0,0.00032876,7]
[336770941,1725131245633,-500.0,0.00032876,31]
[336770942,1725131245656,-500.0,0.00032876,31]
[336770943,1725131245677,-500.0,0.00032876,31]
[336770944,1725131245698,-500.0,0.00032876,31]
[336770945,1725131245720,-151.0,0.00032876,7]
[336770946,1725131245742,-151.0,0.00032876,7]
[336770947,1725131245764,-500.0,0.00032876,31]
[336770948,1725131245786,-151.0,0.00032876,7]
[336770949,1725131245807,-151.0,0.00032876,7]
[336770950,1725131245829,-151.0,0.00032876,7]
[336770951,1725131245850,-151.0,0.00032876,7]
[336770952,1725131245871,-1050.79,0.00032876,31]
[336770953,1725131245893,-500.0,0.00032876,31]
[336770954,1725131245914,-500.0,0.00032876,31]
[336770955,1725131245941,-2635.0,0.00032876,31]
[336770956,1725131245963,-500.0,0.00032876,31]
[336770957,1725131245985,-500.0,0.00032876,31]
[336770958,1725131246007,-701.18,0.00032876,31]
[336770959,1725131246032,-674.04,0.00032876,31]
[336770960,1725131246053,-500.0,0.00032876,31]
[336770961,1725131246074,-500.0,0.00032876,31]
[336770962,1725131246094,-500.0,0.00032876,31]
[336770963,1725131246119,-5759.47,0.00032876,31]
[336770964,1725131246140,-1010.2,0.00032876,31]
[336770965,1725131246160,-500.0,0.00032876,31]
[336770966,1725131246181,-500.0,0.00032876,31]
[336770967,1725131246201,-500.0,0.00032876,31]
[336770968,1725131246221,-500.0,0.00032876,31]
[336770969,1725131246247,-9771.98,0.00032876,31]
[336770970,1725131246267,-500.0,0.00032876,31]
[336770971,1725131246291,-12824.78,0.00032876,31]
[336770972,1725131246312,-500.0,0.00032876,31]
[336770973,1725131246334,-151.0,0.00032876,7]
[336770974,1725131246355,-992.02,0.00032876,31]
[336770975,1725131246377,-151.0,0.00032876,7]
[336770976,1725131246399,-500.0,0.00032876,31]
[336770977,1725131246422,-500.0,0.00032876,31]
[336770978,1725131246545,-500.0,0.00032876,31]
[336770979,1725131246567,-500.0,0.00032876,31]
[336770980,1725131246591,-500.0,0.00032876,31]
[336770981,1725131246613,-825.61,0.00032876,31]
[336770982,1725131246636,-828.53,0.00032876,31]
[336770983,1725131246657,-500.0,0.00032876,31]
[336770984,1725131246680,-3297.29,0.00032876,31]
[336770985,1725131246702,-500.0,0.00032876,31]
[336770986,1725131246724,-520.52677227,0.00032876,31]
[336770987,1725131246747,-1900.4,0.00032876,31]
[336770988,1725131246770,-501.33421266,0.00032876,31]
[336770989,1725131246799,-500.0,0.00032876,31]
[336770990,1725131246824,-500.0,0.00032876,31]
[336770991,1725131246849,-958.55,0.00032876,31]
[336770992,1725131246873,-964.01,0.00032876,31]
[336770993,1725131246899,-500.0,0.00032876,31]
[336770994,1725131246924,-926.28,0.00032876,31]
[336770995,1725131246949,-994.23,0.00032876,31]
[336770996,1725131246972,-500.0,0.00032876,31]
[336770997,1725131246995,-500.0,0.00032876,31]
[336770998,1725131247021,-500.0,0.00032876,31]
[336770999,1725131247048,-500.0,0.00032876,31]
[336771000,1725131247070,-500.0,0.00032876,31]
[336771001,1725131247092,-594.64617131,0.00032876,31]
[336771002,1725131247113,-400.69003811,0.00032877,60]
[336771003,1725131247136,-150.086,0.00032932,2]
[336771004,1725131247157,-150.076,0.00032932,2]
[336771005,1725131247178,-213.32,0.00032932,2]
[336771006,1725131247203,-151.0,0.00032932,14]
[336771007,1725131247227,-151.0,0.00032932,14]
[336771008,1725131247250,-151.0,0.00032932,14]
[336771009,1725131247273,-151.0,0.00032932,14]
[336771010,1725131247299,-5323.39814831,0.00032963,4]
[336771011,1725131247320,-1000.0,0.00033,33]
[336771012,1725131247341,-2602.11,0.00033,14]
[336771013,1725131247364,-3000.0,0.00033,120]
[336771014,1725131247389,-632.914471,0.00033,14]
[336771015,1725131247415,-632.914471,0.00033,14]
[336771016,1725131247439,-159.64,0.00033,31]
[336771017,1725131247462,-500.0,0.00033042,7]
[336771018,1725131247485,-332.12108601,0.0003305,2]
[336771019,1725131247507,-150.112233,0.000331,9]
[336771020,1725131247531,-151.692955,0.0003314,14]
[336771021,1725131247552,-151.692955,0.0003314,14]
[336771022,1725131247574,-151.0,0.0003314,14]
[336771023,1725131247598,-151.0,0.0003314,14]
[336771024,1725131247621,-151.0,0.0003314,14]
[336771025,1725131247644,-1005.949984,0.0003314,14]
[336771026,1725131247666,-1005.949984,0.0003314,14]
[336771027,1725131247689,-151.0,0.0003314,14]
[336771028,1725131247711,-332.12108599,0.00033147,2]
[336771029,1725131247734,-151.0,0.0003315,14]
[336771030,1725131247756,-160.771364,0.0003315,14]
[336771031,1725131247780,-151.692955,0.0003315,14]
[336771032,1725131247802,-151.692955,0.0003315,14]
[336771033,1725131247824,-151.692955,0.0003315,14]
[336771034,1725131247850,-151.692955,0.0003315,14]
[336771035,1725131247872,-151.692955,0.0003315,14]
[336771036,1725131247893,-151.692955,0.0003315,14]
[336771037,1725131247915,-151.0,0.0003315,14]
[336771038,1725131247937,-151.0,0.0003315,14]
[336771039,1725131247963,-151.0,0.0003315,14]
[336771040,1725131247987,-151.0,0.0003315,14]
[336771041,1725131248009,-500.0,0.0003315,31]
[336771042,1725131248035,-500.0,0.0003315,31]
[336771043,1725131248056,-500.0,0.0003315,31]
[336771044,1725131248173,-500.0,0.0003315,31]
[336771045,1725131248196,-500.0,0.0003315,31]
[336771046,1725131248217,-500.0,0.0003315,31]
[336771047,1725131248238,-500.0,0.0003315,31]
[336771048,1725131248260,-500.0,0.0003315,31]
[336771049,1725131248281,-500.0,0.0003315,31]
[336771050,1725131248301,-500.0,0.0003315,31]
[336771051,1725131248322,-500.0,0.0003315,31]
[336771052,1725131248343,-821.34,0.0003315,31]
[336771053,1725131248365,-500.0,0.0003315,31]
[336771054,1725131248385,-500.0,0.0003315,31]
[336771055,1725131248406,-500.0,0.0003315,31]
[336771056,1725131248427,-500.0,0.0003315,31]
[336771057,1725131248449,-500.0,0.0003315,31]
[336771058,1725131248471,-500.0,0.0003315,31]
[336771059,1725131248492,-500.0,0.0003315,31]
[336771060,1725131248514,-500.0,0.0003315,31]
[336771061,1725131248539,-500.0,0.0003315,31]
[336771062,1725131248564,-500.0,0.0003315,31]
[336771063,1725131248585,-500.0,0.0003315,31]
[336771064,1725131248607,-198.38454087,0.0003315,31]
[336771065,1725131248629,-500.0,0.0003315,31]
[336771066,1725131248650,-500.0,0.0003315,31]
[336771067,1725131248672,-615.03,0.0003315,31]
[336771068,1725131248693,-500.0,0.0003315,31]